fUSD/lending_fUSD_20260115
["ID","MTS","AMOUNT","RATE_DAILY","PERIOD"]
[402067687,1768504253928,-517.34,0.00035616,10]
[402067688,1768504253939,-803.57,0.00035616,10]
[402067689,1768504253950,-500.0,0.00035616,10]
[402067690,1768504253961,-896.41,0.00035616,10]
[402067691,1768504253971,-651.76,0.00035616,10]
[402067692,1768504253982,-529.2,0.00035616,10]
[402067693,1768504253993,-304.88751162,0.00035616,10]
[402067694,1768504254003,-500.0,0.00035616,10]
[402067695,1768504254014,-500.0,0.00035616,10]
[402067696,1768504254025,-500.0,0.00035616,10]
[402067697,1768504254036,-546.08243151,0.00035616,10]
[402067698,1768504254047,-500.0,0.00035616,10]
[402067699,1768504254057,-500.0,0.00035616,10]
[402067700,1768504254068,-500.0,0.00035616,10]
[402067701,1768504254079,-1449.15,0.00035616,10]
[402067702,1768504254089,-2155.42,0.00035616,10]
[402067703,1768504254102,-500.0,0.00035616,10]
[402067704,1768504254112,-500.0,0.00035616,10]
[402067705,1768504254123,-500.0,0.00035616,10]
[402067706,1768504254133,-500.0,0.00035616,10]
[402067707,1768504254144,-500.0,0.00035616,10]
[402067708,1768504254154,-500.0,0.00035616,10]
[402067709,1768504254164,-500.0,0.00035616,10]
[402067710,1768504254174,-548.31799833,0.00035616,10]
[402067711,1768504254185,-500.0,0.00035616,10]
[402067712,1768504254195,-666.29,0.00035616,10]
[402067713,1768504254204,-500.0,0.00035616,10]
[402067714,1768504254214,-500.0,0.00035616,10]
[402067715,1768504254228,-500.0,0.00035616,10]
[402067716,1768504254239,-330.05476301,0.00035616,10]
[402067717,1768504254250,-500.0,0.00035616,10]
[402067718,1768504254262,-881.05,0.00035616,10]
[402067719,1768504254272,-500.0,0.00035616,10]
[402067720,1768504254282,-500.0,0.00035616,10]
[402067721,1768504254292,-500.0,0.00035616,10]
[402067722,1768504254302,-500.0,0.00035616,10]
[402067723,1768504254312,-500.0,0.00035616,10]
[402067724,1768504254322,-500.0,0.00035616,10]
[402067725,1768504254334,-500.0,0.00035616,10]
[402067726,1768504254344,-625.04,0.00035616,10]
[402067727,1768504254354,-500.0,0.00035616,10]
[402067728,1768504254364,-500.0,0.00035616,10]
[402067729,1768504254375,-500.0,0.00035616,10]
[402067730,1768504254386,-500.0,0.00035616,10]
[402067731,1768504254396,-500.0,0.00035616,10]
[402067732,1768504254406,-500.0,0.00035616,10]
[402067733,1768504254420,-949.36,0.00035616,10]
[402067734,1768504254430,-500.0,0.00035616,10]
[402067735,1768504254441,-711.36,0.00035616,10]
[402067736,1768504254452,-628.28,0.00035616,10]
[402067737,1768504254462,-500.0,0.00035616,10]
[402067738,1768504254472,-500.0,0.00035616,10]
[402067739,1768504254482,-500.0,0.00035616,10]
[402067740,1768504254492,-500.0,0.00035616,10]
[402067741,1768504254501,-500.0,0.00035616,10]
[402067742,1768504254512,-500.0,0.00035616,10]
[402067743,1768504254521,-500.0,0.00035616,10]
[402067744,1768504254532,-965.51,0.00035616,10]
[402067745,1768504254542,-500.0,0.00035616,10]
[402067746,1768504254553,-500.0,0.00035616,10]
[402067747,1768504254563,-944.51,0.00035616,10]
[402067748,1768504254572,-500.0,0.00035616,10]
[402067749,1768504254582,-500.0,0.00035616,10]
[402067750,1768504254592,-500.0,0.00035616,10]
[402067751,1768504254602,-500.0,0.00035616,10]
[402067752,1768504254612,-600.20266623,0.00035616,10]
[402067753,1768504254624,-500.0,0.00035616,10]
[402067754,1768504254634,-530.63,0.00035616,10]
[402067755,1768504254644,-500.0,0.00035616,10]
[402067756,1768504254654,-500.0,0.00035616,10]
[402067757,1768504254664,-500.0,0.00035616,10]
[402067758,1768504254674,-836.81,0.00035616,10]
[402067759,1768504254684,-500.0,0.00035616,10]
[402067760,1768504254695,-742.27,0.00035616,10]
[402067761,1768504254704,-500.0,0.00035616,10]
[402067762,1768504254714,-500.0,0.00035616,10]
[402067763,1768504254724,-506.98,0.00035616,10]
[402067764,1768504254734,-500.0,0.00035616,10]
[402067765,1768504254743,-500.0,0.00035616,10]
[402067766,1768504254753,-500.0,0.00035616,10]
[402067767,1768504254764,-500.0,0.00035616,10]
[402067768,1768504254774,-500.0,0.00035616,10]
[402067769,1768504254784,-803.21,0.00035616,10]
[402067770,1768504254793,-909.72,0.00035616,10]
[402067771,1768504254803,-500.0,0.00035616,10]
[402067772,1768504254816,-500.0,0.00035616,10]
[402067773,1768504254826,-633.24,0.00035616,10]
[402067774,1768504254836,-1111.93,0.00035616,10]
[402067775,1768504254846,-500.0,0.00035616,10]
[402067776,1768504254857,-500.0,0.00035616,10]
[402067777,1768504254867,-502.53,0.00035616,10]
[402067778,1768504254878,-500.0,0.00035616,10]
[402067779,1768504254890,-500.0,0.00035616,10]
[402067780,1768504254900,-596.56,0.00035616,10]
[402067781,1768504254910,-1425.29,0.00035616,10]
[402067782,1768504254920,-850.1,0.00035616,10]
[402067783,1768504254930,-500.0,0.00035616,10]
[402067784,1768504254941,-500.0,0.00035616,10]
[402067785,1768504254950,-626.9646519,0.00035616,10]
[402067786,1768504254961,-500.0,0.00035616,10]
[402067787,1768504254971,-682.27,0.00035616,10]
[402067788,1768504254982,-500.0,0.00035616,10]
[402067789,1768504254992,-571.9,0.00035616,10]
[402067790,1768504255002,-514.18,0.00035616,10]
[402067791,1768504255011,-892.88,0.00035616,10]
[402067792,1768504255023,-557.9735435,0.00035616,10]
[402067793,1768504255033,-2082.12,0.00035616,10]
[402067794,1768504255043,-500.0,0.00035616,10]
[402067795,1768504255054,-500.0,0.00035616,10]
[402067796,1768504255064,-3132.39,0.00035616,10]
[402067797,1768504255073,-507.32900805,0.00035616,10]
[402067798,1768504255083,-500.0,0.00035616,10]
[402067799,1768504255093,-500.0,0.00035616,10]
[402067800,1768504255106,-692.94,0.00035616,10]
[402067801,1768504255115,-500.0,0.00035616,10]
[402067802,1768504255125,-500.0,0.00035616,10]
[402067803,1768504255135,-532.93,0.00035616,10]
[402067804,1768504255145,-500.0,0.00035616,10]
[402067805,1768504255155,-208.64241242,0.00035616,10]
[402067806,1768504255165,-500.0,0.00035616,10]
[402067807,1768504255177,-500.0,0.00035616,10]
[402067808,1768504255187,-500.0,0.00035616,10]
[402067809,1768504255197,-500.0,0.00035616,10]
[402067810,1768504255207,-500.0,0.00035616,10]
[402067811,1768504255216,-500.0,0.00035616,10]
[402067812,1768504255225,-500.0,0.00035616,10]
[402067813,1768504255235,-1136.92,0.00035616,10]
[402067814,1768504255244,-500.0,0.00035616,10]
[402067815,1768504255253,-500.0,0.00035616,10]
[402067816,1768504255263,-500.0,0.00035616,10]
[402067817,1768504255272,-500.0,0.00035616,10]
[402067818,1768504255282,-400.81798378,0.00035616,5]
[402067819,1768504255292,-500.0,0.00035616,10]
[402067820,1768504255302,-500.0,0.00035616,10]
[402067821,1768504255311,-500.0,0.00035616,10]
[402067822,1768504255322,-500.0,0.00035616,10]
[402067823,1768504255334,-500.0,0.00035616,10]
[402067824,1768504255345,-603.81,0.00035616,10]
[402067825,1768504255355,-500.0,0.00035616,10]
[402067826,1768504255366,-778.13,0.00035616,10]
[402067827,1768504255376,-500.0,0.00035616,10]
[402067828,1768504255386,-500.0,0.00035616,10]
[402067829,1768504255396,-500.0,0.00035616,10]
[402067830,1768504255405,-500.0,0.00035616,10]
[402067831,1768504255415,-498.69779716,0.00035616,10]
[402067832,1768504255424,-500.0,0.00035616,10]
[402067833,1768504255434,-500.0,0.00035616,10]
[402067834,1768504255444,-500.0,0.00035616,10]
[402067835,1768504255454,-500.0,0.00035616,10]
[402067836,1768504255463,-529.08953391,0.00035616,10]
[402067837,1768504255473,-500.0,0.00035616,10]
[402067838,1768504255483,-500.0,0.00035616,10]
[402067839,1768504255492,-500.0,0.00035616,10]
[402067840,1768504255502,-500.0,0.00035616,10]
[402067841,1768504255511,-500.0,0.00035616,10]
[402067842,1768504255521,-563.81890593,0.00035616,10]
[402067843,1768504255530,-817.65,0.00035616,10]
[402067844,1768504255539,-500.0,0.00035616,10]
[402067845,1768504255549,-327.9710002,0.00035616,10]
[402067846,1768504255558,-500.0,0.00035616,10]
[402067847,1768504255568,-538.14,0.00035616,10]
[402067848,1768504255577,-500.0,0.00035616,10]
[402067849,1768504255586,-500.0,0.00035616,10]
[402067850,1768504255598,-500.0,0.00035616,10]
[402067851,1768504255607,-500.0,0.00035616,10]
[402067852,1768504255616,-500.0,0.00035616,10]
[402067853,1768504255625,-500.0,0.00035616,10]
[402067854,1768504255634,-1095.93,0.00035616,10]
[402067855,1768504255643,-613.39,0.00035616,10]
[402067856,1768504255653,-684.46,0.00035616,10]
[402067857,1768504255762,-652.1,0.00035616,10]
[402067858,1768504255772,-500.0,0.00035616,10]
[402067859,1768504255782,-803.15,0.00035616,10]
[402067860,1768504255791,-500.0,0.00035616,10]
[402067861,1768504255800,-500.0,0.00035616,10]
[402067862,1768504255809,-1894.16,0.00035616,10]
[402067863,1768504255818,-537.5227523,0.00035616,10]
[402067864,1768504255827,-1064.54,0.00035616,10]
[402067865,1768504255836,-1206.56,0.00035616,10]
[402067866,1768504255845,-500.0,0.00035616,10]
[402067867,1768504255854,-500.0,0.00035616,10]
[402067868,1768504255864,-547.27401254,0.00035616,3]
[402067869,1768504255873,-500.0,0.00035616,10]
[402067870,1768504255883,-3299.68,0.00035616,10]
[402067871,1768504255892,-500.0,0.00035616,10]
[402067872,1768504255903,-500.0,0.00035616,10]
[402067873,1768504255912,-569.77,0.00035616,10]
[402067874,1768504255922,-500.0,0.00035616,10]
[402067875,1768504255931,-500.0,0.00035616,10]
[402067876,1768504255942,-592.92,0.00035616,10]
[402067877,1768504255951,-500.0,0.00035616,10]
[402067878,1768504255960,-1815.78,0.00035616,10]
[402067879,1768504255970,-519.56,0.00035616,10]
[402067880,1768504255979,-500.0,0.00035616,10]
[402067881,1768504255988,-500.0,0.00035616,10]
[402067882,1768504255997,-436.07536298,0.00035616,10]
[402067883,1768504256006,-500.0,0.00035616,10]
[402067884,1768504256015,-500.0,0.00035616,10]
[402067885,1768504256025,-500.0,0.00035616,10]
[402067886,1768504256035,-500.0,0.00035616,10]
[402067887,1768504256044,-500.0,0.00035616,10]
[402067888,1768504256053,-802.86,0.00035616,10]
[402067889,1768504256063,-218.34199809,0.00035616,10]
[402067890,1768504256073,-500.0,0.00035616,10]
[402067891,1768504256083,-159.6458397,0.00035616,10]
[402067892,1768504256093,-574.56,0.00035616,10]
[402067893,1768504256106,-500.0,0.00035616,10]
[402067894,1768504256115,-500.0,0.00035616,10]
[402067895,1768504256125,-500.0,0.00035616,10]
[402067896,1768504256135,-500.0,0.00035616,10]
[402067897,1768504256145,-1009.98,0.00035616,10]
[402067898,1768504256156,-600.78,0.00035616,10]
[402067899,1768504256166,-1196.57,0.00035616,10]
[402067900,1768504256181,-500.0,0.00035616,10]
[402067901,1768504256191,-1692.22,0.00035616,10]
[402067902,1768504256201,-500.0,0.00035616,10]
[402067903,1768504256211,-500.0,0.00035616,5]
[402067904,1768504256221,-500.0,0.00035616,10]
[402067905,1768504256231,-591.36,0.00035616,10]
[402067906,1768504256240,-500.0,0.00035616,10]
[402067907,1768504256249,-823.12,0.00035616,10]
[402067908,1768504256258,-718.91,0.00035616,10]
[402067909,1768504256267,-941.2,0.00035616,10]
[402067910,1768504256276,-500.0,0.00035616,10]
[402067911,1768504256286,-500.0,0.00035616,10]
[402067912,1768504256296,-752.25,0.00035616,10]
[402067913,1768504256305,-1127.53,0.00035616,10]
[402067914,1768504256314,-500.0,0.00035616,10]
[402067915,1768504256323,-500.0,0.00035616,10]
[402067916,1768504256332,-500.0,0.00035616,10]
[402067917,1768504256341,-500.0,0.00035616,10]
[402067918,1768504256351,-511.74,0.00035616,10]
[402067919,1768504256360,-500.0,0.00035616,10]
[402067920,1768504256370,-881.65,0.00035616,10]
[402067921,1768504256380,-500.0,0.00035616,10]
[402067922,1768504256389,-500.0,0.00035616,10]
[402067923,1768504256398,-500.0,0.00035616,10]
[402067924,1768504256407,-500.0,0.00035616,10]
[402067925,1768504256417,-500.0,0.00035616,10]
[402067926,1768504256426,-500.0,0.00035616,10]
[402067927,1768504256435,-500.0,0.00035616,10]
[402067928,1768504256444,-1140.78,0.00035616,10]
[402067929,1768504256454,-676.39,0.00035616,10]
[402067930,1768504256464,-844.33,0.00035616,10]
[402067931,1768504256474,-500.0,0.00035616,10]
[402067932,1768504256483,-500.0,0.00035616,10]
[402067933,1768504256492,-662.72,0.00035616,10]
[402067934,1768504256501,-500.0,0.00035616,10]
[402067935,1768504256510,-500.0,0.00035616,10]
[402067936,1768504256519,-500.0,0.00035616,10]
[402067937,1768504256528,-620.83,0.00035616,10]
[402067938,1768504256537,-500.0,0.00035616,10]
[402067939,1768504256546,-500.0,0.00035616,10]
[402067940,1768504256555,-500.0,0.00035616,10]
[402067941,1768504256564,-500.0,0.00035616,10]
[402067942,1768504256573,-500.0,0.00035616,10]
[402067943,1768504256582,-801.06,0.00035616,10]
[402067944,1768504256591,-1191.37,0.00035616,10]
[402067945,1768504256600,-1365.61,0.00035616,10]
[402067946,1768504256609,-500.0,0.00035616,10]
[402067947,1768504256619,-595.5,0.00035616,10]
[402067948,1768504256629,-500.0,0.00035616,10]
[402067949,1768504256640,-1074.02,0.00035616,10]
[402067950,1768504256650,-677.58,0.00035616,10]
[402067951,1768504256660,-3101.72,0.00035616,10]
[402067952,1768504256670,-688.27,0.00035616,10]
[402067953,1768504256679,-565.6,0.00035616,10]
[402067954,1768504256688,-500.0,0.00035616,10]
[402067955,1768504256697,-500.0,0.00035616,10]
[402067956,1768504256706,-500.0,0.00035616,10]
[402067957,1768504256715,-500.0,0.00035616,10]
[402067958,1768504256725,-500.0,0.00035616,10]
[402067959,1768504256735,-500.0,0.00035616,10]
[402067960,1768504256744,-588.14,0.00035616,10]
[402067961,1768504256754,-500.0,0.00035616,10]
[402067962,1768504256763,-500.0,0.00035616,10]
[402067963,1768504256772,-500.0,0.00035616,10]
[402067964,1768504256781,-500.0,0.00035616,10]
[402067965,1768504256791,-500.0,0.00035616,10]
[402067966,1768504256801,-500.0,0.00035616,10]
[402067967,1768504256810,-500.0,0.00035616,10]
[402067968,1768504256819,-206.93500616,0.00035616,10]
[402067969,1768504256828,-500.0,0.00035616,10]
[402067970,1768504256837,-500.0,0.00035616,10]
[402067971,1768504256847,-990.91,0.00035616,10]
[402067972,1768504256856,-500.0,0.00035616,10]
[402067973,1768504256866,-400.0,0.00035616,10]
[402067974,1768504256875,-500.0,0.00035616,10]
[402067975,1768504256883,-500.0,0.00035616,10]
[402067976,1768504256895,-500.0,0.00035616,10]
[402067977,1768504256904,-500.0,0.00035616,10]
[402067978,1768504256914,-500.0,0.00035616,10]
[402067979,1768504256924,-500.0,0.00035616,120]
[402067980,1768504256933,-522.63,0.00035616,10]
[402067981,1768504256944,-500.0,0.00035616,10]
[402067982,1768504256954,-500.0,0.00035616,10]
[402067983,1768504256963,-500.0,0.00035616,10]
[402067984,1768504256972,-500.0,0.00035616,10]
[402067985,1768504256981,-500.0,0.00035616,10]
[402067986,1768504256990,-500.0,0.00035616,10]
[402067987,1768504256999,-500.0,0.00035616,10]
[402067988,1768504257009,-462.68449964,0.00035616,10]
[402067989,1768504257019,-884.32,0.00035616,10]
[402067990,1768504257028,-500.0,0.00035616,10]
[402067991,1768504257037,-437.38411383,0.00035616,10]
[402067992,1768504257047,-693.09,0.00035616,10]
[402067993,1768504257056,-500.0,0.00035616,10]
[402067994,1768504257065,-500.0,0.00035616,10]
[402067995,1768504257074,-500.0,0.00035616,10]
[402067996,1768504257083,-724.73,0.00035616,10]
[402067997,1768504257093,-500.0,0.00035616,10]
[402067998,1768504257104,-500.0,0.00035616,10]
[402067999,1768504257113,-500.0,0.00035616,10]
[402068000,1768504257122,-500.0,0.00035616,10]
[402068001,1768504257131,-586.01,0.00035616,10]
[402068002,1768504257141,-500.0,0.00035616,10]
[402068003,1768504257150,-532.92,0.00035616,10]
[402068004,1768504257159,-399.8710917,0.00035616,10]
[402068005,1768504257170,-500.0,0.00035616,10]
[402068006,1768504257179,-887.63,0.00035616,10]
[402068007,1768504257188,-500.0,0.00035616,10]
[402068008,1768504257198,-500.0,0.00035616,10]
[402068009,1768504257208,-500.0,0.00035616,10]
[402068010,1768504257218,-500.0,0.00035616,10]
[402068011,1768504257227,-1590.7,0.00035616,10]
[402068012,1768504257237,-500.0,0.00035616,10]
[402068013,1768504257247,-584.97095688,0.00035616,10]
[402068014,1768504257257,-509.07,0.00035616,10]
[402068015,1768504257266,-500.0,0.00035616,10]
[402068016,1768504257276,-500.0,0.00035616,10]
[402068017,1768504257286,-500.0,0.00035616,10]
[402068018,1768504257297,-500.0,0.00035616,10]
[402068019,1768504257307,-500.0,0.00035616,10]
[402068020,1768504257317,-500.0,0.00035616,10]
[402068021,1768504257327,-753.37,0.00035616,10]
[402068022,1768504257336,-916.06,0.00035616,10]
[402068023,1768504257346,-500.0,0.00035616,10]
[402068024,1768504257356,-1126.18,0.00035616,10]
[402068025,1768504257365,-500.0,0.00035616,10]
[402068026,1768504257375,-514.44,0.00035616,10]
[402068027,1768504257385,-500.0,0.00035616,10]
[402068028,1768504257394,-500.0,0.00035616,10]
[402068029,1768504257404,-500.0,0.00035616,10]
[402068030,1768504257414,-600.0,0.00035616,2]
[402068031,1768504257423,-1442.5,0.00035663,7]
[402068032,1768504257433,-151.0,0.0003589,10]
[402068033,1768504257443,-500.0,0.0003589,10]
[402068034,1768504257453,-860.12,0.0003589,10]
[402068035,1768504257462,-500.0,0.0003589,10]
[402068036,1768504257472,-761.5,0.0003589,10]
[402068037,1768504257482,-606.79,0.0003589,10]
[402068038,1768504257491,-500.0,0.0003589,10]
[402068039,1768504257501,-500.0,0.0003589,10]
[402068040,1768504257511,-500.0,0.0003589,10]
[402068041,1768504257521,-665.97,0.0003589,10]
[402068042,1768504257531,-500.0,0.0003589,10]
[402068043,1768504257541,-522.89,0.0003589,10]
[402068044,1768504257551,-816.27,0.0003589,10]
[402068045,1768504257561,-500.0,0.0003589,10]
[402068046,1768504257570,-500.0,0.0003589,10]
[402068047,1768504257579,-500.0,0.0003589,10]
[402068048,1768504257589,-500.0,0.0003589,10]
[402068049,1768504257598,-500.0,0.0003589,10]
[402068050,1768504257608,-500.0,0.0003589,10]
[402068051,1768504257618,-500.0,0.0003589,10]
[402068052,1768504257628,-500.0,0.0003589,10]
[402068053,1768504257638,-500.0,0.0003589,10]
[402068054,1768504257648,-500.0,0.0003589,7]
[402068055,1768504257657,-500.0,0.0003589,10]
[402068056,1768504257667,-500.0,0.0003589,10]
[402068057,1768504257676,-500.0,0.0003589,10]
[402068058,1768504257686,-646.5,0.0003589,10]
[402068059,1768504257698,-500.0,0.0003589,10]
[402068060,1768504257707,-500.0,0.0003589,10]
[402068061,1768504257717,-500.0,0.0003589,10]
[402068062,1768504257726,-725.84,0.0003589,10]
[402068063,1768504257736,-500.0,0.0003589,10]
[402068064,1768504257745,-500.0,0.0003589,10]
[402068065,1768504257755,-500.0,0.0003589,10]
[402068066,1768504257766,-500.0,0.0003589,10]
[402068067,1768504257776,-500.0,0.0003589,2]
[402068068,1768504257786,-500.0,0.0003589,10]
[402068069,1768504257795,-500.0,0.0003589,10]
[402068070,1768504257805,-1000.0,0.0003589,2]
[402068071,1768504257814,-538.3,0.0003589,10]
[402068072,1768504257824,-500.0,0.0003589,10]
[402068073,1768504257834,-500.0,0.0003589,10]
[402068074,1768504257845,-768.3,0.0003589,10]
[402068075,1768504257855,-711.41,0.0003589,10]
[402068076,1768504257865,-500.0,0.0003589,10]
[402068077,1768504257874,-664.89,0.0003589,10]
[402068078,1768504257884,-500.0,0.0003589,10]
[402068079,1768504257895,-500.0,0.0003589,10]
[402068080,1768504257907,-789.19,0.0003589,10]
[402068081,1768504257918,-500.0,0.0003589,10]
[402068082,1768504257929,-522.79,0.0003589,10]
[402068083,1768504257943,-500.0,0.0003589,10]
[402068084,1768504257953,-500.0,0.0003589,10]
[402068085,1768504257962,-500.0,0.0003589,10]
[402068086,1768504257973,-500.0,0.0003589,10]
[402068087,1768504257983,-641.1,0.0003589,10]
[402068088,1768504257992,-500.0,0.0003589,10]
[402068089,1768504258002,-500.0,0.0003589,10]
[402068090,1768504258011,-500.0,0.0003589,10]
[402068091,1768504258021,-500.0,0.0003589,10]
[402068092,1768504258032,-500.0,0.0003589,10]
[402068093,1768504258041,-609.87143489,0.0003589,10]
[402068094,1768504258051,-500.0,0.0003589,10]
[402068095,1768504258061,-500.0,0.0003589,10]
[402068096,1768504258071,-500.0,0.0003589,10]
[402068097,1768504258081,-208.59016971,0.0003589,10]
[402068098,1768504258091,-500.0,0.0003589,10]
[402068099,1768504258104,-500.0,0.0003589,10]
[402068100,1768504258118,-282.24931881,0.0003589,10]
[402068101,1768504258129,-500.0,0.0003589,10]
[402068102,1768504258139,-521.12,0.0003589,10]
[402068103,1768504258151,-672.78,0.0003589,10]
[402068104,1768504258162,-500.0,0.0003589,10]
[402068105,1768504258173,-578.84,0.0003589,10]
[402068106,1768504258184,-500.0,0.0003589,10]
[402068107,1768504258196,-500.0,0.0003589,10]
[402068108,1768504258207,-500.0,0.0003589,10]
[402068109,1768504258216,-1033.69,0.0003589,10]
[402068110,1768504258226,-500.0,0.0003589,10]
[402068111,1768504258236,-835.63,0.0003589,10]
[402068112,1768504258246,-500.0,0.0003589,10]
[402068113,1768504258257,-500.0,0.0003589,10]
[402068114,1768504258267,-500.0,0.0003589,10]
[402068115,1768504258277,-500.0,0.0003589,10]
[402068116,1768504258287,-500.0,0.0003589,10]
[402068117,1768504258297,-500.0,0.0003589,10]
[402068118,1768504258307,-601.61,0.0003589,10]
[402068119,1768504258316,-500.0,0.0003589,10]
[402068120,1768504258326,-269.40206921,0.0003589,10]
[402068121,1768504258337,-500.0,0.0003589,10]
[402068122,1768504258348,-500.0,0.0003589,10]
[402068123,1768504258359,-615.6,0.0003589,10]
[402068124,1768504258370,-500.0,0.0003589,10]
[402068125,1768504258380,-500.0,0.0003589,10]
[402068126,1768504258390,-500.0,0.0003589,10]
[402068127,1768504258400,-477.14776419,0.0003589,10]
[402068128,1768504258412,-500.0,0.0003589,10]
[402068129,1768504258423,-500.0,0.0003589,10]
[402068130,1768504258435,-500.0,0.0003589,10]
[402068131,1768504258446,-438.14989937,0.0003589,10]
[402068132,1768504258457,-461.65083549,0.0003589,10]
[402068133,1768504258466,-577.65,0.0003589,10]
[402068134,1768504258478,-500.0,0.0003589,10]
[402068135,1768504258490,-500.0,0.0003589,10]
[402068136,1768504258503,-500.0,0.0003589,10]
[402068137,1768504258512,-500.0,0.0003589,10]
[402068138,1768504258523,-500.0,0.0003589,10]
[402068139,1768504258534,-500.0,0.0003589,10]
[402068140,1768504258545,-500.0,0.0003589,10]
[402068141,1768504258556,-943.74,0.0003589,10]
[402068142,1768504258566,-500.0,0.0003589,10]
[402068143,1768504258577,-728.84,0.0003589,10]
[402068144,1768504258587,-500.0,0.0003589,10]
[402068145,1768504258598,-556.96,0.0003589,10]
[402068146,1768504258608,-500.0,0.0003589,10]
[402068147,1768504258619,-500.0,0.0003589,10]
[402068148,1768504258629,-939.23,0.0003589,10]
[402068149,1768504258640,-500.0,0.0003589,10]
[402068150,1768504258651,-500.0,0.0003589,10]
[402068151,1768504258661,-500.0,0.0003589,10]
[402068152,1768504258672,-500.0,0.0003589,10]
[402068153,1768504258684,-650.26,0.0003589,10]
[402068154,1768504258697,-500.0,0.0003589,10]
[402068155,1768504258708,-500.0,0.0003589,10]
[402068156,1768504258718,-642.16,0.0003589,10]
[402068157,1768504258730,-539.34596999,0.0003589,10]
[402068158,1768504258741,-500.0,0.0003589,10]
[402068159,1768504258751,-500.0,0.0003589,10]
[402068160,1768504258762,-500.0,0.0003589,10]
[402068161,1768504258773,-500.0,0.0003589,10]
[402068162,1768504258783,-500.0,0.0003589,10]
[402068163,1768504258794,-500.0,0.0003589,10]
[402068164,1768504258805,-500.0,0.0003589,10]
[402068165,1768504258817,-500.0,0.0003589,10]
[402068166,1768504258829,-500.0,0.0003589,10]
[402068167,1768504258839,-512.44,0.0003589,10]
[402068168,1768504258851,-500.0,0.0003589,10]
[402068169,1768504258863,-500.0,0.0003589,10]
[402068170,1768504258873,-500.0,0.0003589,10]
[402068171,1768504258885,-979.25,0.0003589,10]
[402068172,1768504258895,-500.0,0.0003589,10]
[402068173,1768504258905,-722.79,0.0003589,10]
[402068174,1768504258915,-806.78,0.0003589,10]
[402068175,1768504258925,-556.98,0.0003589,10]
[402068176,1768504258936,-717.92,0.0003589,10]
[402068177,1768504258946,-500.0,0.0003589,10]
[402068178,1768504258957,-500.0,0.0003589,10]
[402068179,1768504258968,-500.0,0.0003589,10]
[402068180,1768504258978,-783.65,0.0003589,10]
[402068181,1768504258988,-605.93,0.0003589,10]
[402068182,1768504258999,-755.21,0.0003589,10]
[402068183,1768504259010,-500.0,0.0003589,10]
[402068184,1768504259021,-524.5,0.0003589,10]
[402068185,1768504259032,-500.0,0.0003589,10]
[402068186,1768504259042,-718.26,0.0003589,10]